fUST/lending_fUST_20251211
["ID","MTS","AMOUNT","RATE_DAILY","PERIOD"]
[398243307,1765450577701,-286.49077375,9.9e-05,2]
[398243308,1765450580815,-187.69703391,9.9e-05,2]
[398243309,1765450583474,-164.44899972,9.9e-05,2]
[398243310,1765450586212,-203.36951046,9.9e-05,2]
[398243311,1765450588714,-324.4471519,9.9e-05,2]
[398243312,1765450592458,-323.87793593,9.899e-05,2]
[398243313,1765450597172,-98.55502367,9.899e-05,2]
[398243314,1765450597195,-401.44497633,9.899e-05,2]
[398243315,1765450599250,-98.55502367,9.899e-05,2]
[398243316,1765450599272,-112.53577813,9.899e-05,2]
[398243317,1765450601018,-64.64038869,9.899e-05,2]
[398243318,1765450601040,-128.19397869,9.899e-05,2]
[398243319,1765450602372,-371.80602131,9.899e-05,2]
[398243320,1765450602394,-66.74891025,9.899e-05,2]
[398243321,1765450603945,-166.21,9.899e-05,2]
[398243322,1765450606534,-267.04108975,9.899e-05,2]
[398243323,1765450606563,-28.08127476,9.899e-05,2]
[398243324,1765450608234,-316.14918261,9.899e-05,2]
[398243325,1765450609721,-155.76954263,9.899e-05,2]
[398243326,1765450609750,-46.57468173,9.899e-05,2]
[398243327,1765450612883,-278.43984847,9.899e-05,2]
[398243328,1765450615345,-174.9854698,9.899e-05,2]
[398243329,1765450615372,-209.18396583,9.899e-05,2]
[398243330,1765450618094,-195.97307753,9.899e-05,2]
[398243331,1765450618115,-45.26395811,9.899e-05,2]
[398243332,1765450620850,-179.2736605,9.899e-05,2]
[398243335,1765450622591,-257.62322985,9.899e-05,2]
[398243336,1765450624117,-201.71712585,9.898e-05,2]
[398243337,1765450626964,-98.28287415,9.898e-05,2]
[398243338,1765450626986,-17.83915154,9.899e-05,2]
[398243339,1765450627008,-35.09535207,9.899e-05,2]
[398243340,1765450628996,-238.58205107,9.899e-05,2]
[398243341,1765450630067,-168.89779705,9.899e-05,2]
[398243342,1765450632446,-57.42479981,9.899e-05,2]
[398243343,1765450632475,-147.20898879,9.899e-05,2]
[398243344,1765450636438,-173.35100915,9.899e-05,2]
[398243345,1765450638078,-179.44000206,9.899e-05,2]
[398243346,1765450638100,-41.90739475,9.899e-05,2]
[398243347,1765450639664,-157.80546858,9.899e-05,2]
[398243348,1765450643899,-251.92865864,9.899e-05,2]
[398243349,1765450645555,-48.35847803,9.899e-05,2]
[398243350,1765450645578,-130.52999087,9.899e-05,2]
[398243351,1765450647241,-329.31119464,9.899e-05,2]
[398243352,1765450649923,-40.15881449,9.899e-05,2]
[398243353,1765450649946,-265.83758399,9.899e-05,2]
[398243354,1765450651844,-234.16241601,9.899e-05,2]
[398243355,1765450651865,-90.74481084,9.899e-05,2]
[398243356,1765450657223,-198.34466386,9.899e-05,2]
[398243357,1765450659493,-210.9105253,9.899e-05,2]
[398243358,1765450659517,-94.02191252,9.899e-05,2]
[398243359,1765450663870,-283.27277575,9.899e-05,2]
[398243360,1765450665436,-122.70531173,9.899e-05,2]
[398243361,1765450665468,-107.17714806,9.899e-05,2]
[398243362,1765450667544,-269.54690154,9.899e-05,2]
[398243363,1765450670613,-123.2759504,9.899e-05,2]
[398243364,1765450670637,-190.47786581,9.899e-05,2]
[398243365,1765450673689,-274.27918969,9.899e-05,2]
[398243366,1765450676731,-35.2429445,9.899e-05,2]
[398243367,1765450676753,-123.14750246,9.899e-05,2]
[398243368,1765450678386,-269.50621758,9.899e-05,2]
[398243369,1765450679947,-107.34627996,9.899e-05,2]
[398243370,1765450679969,-47.06340756,9.899e-05,2]
[398243371,1765450681495,-170.68880536,9.899e-05,2]
[398243372,1765450683081,-239.5337924,9.898e-05,2]
[398243373,1765450687368,-60.4662076,9.898e-05,2]
[398243374,1765450687392,-170.02757482,9.899e-05,2]
[398243375,1765450688868,-112.22021226,9.899e-05,2]
[398243376,1765450688892,-56.83663194,9.899e-05,2]
[398243377,1765450690384,-328.76047899,9.899e-05,2]
[398243378,1765450695022,-114.40288907,9.899e-05,2]
[398243379,1765450695045,-188.09219668,9.899e-05,2]
[398243380,1765450698759,-203.41997155,9.899e-05,2]
[398243381,1765450703497,-108.48783177,9.899e-05,2]
[398243382,1765450703521,-55.80879255,9.899e-05,2]
[398243383,1765450705008,-166.08643853,9.899e-05,2]
[398243384,1765450706994,-242.93571075,9.899e-05,2]
[398243385,1765450709850,-35.16905817,9.899e-05,2]
[398243386,1765450709875,-249.02188764,9.899e-05,2]
[398243387,1765450712450,-189.66796824,9.899e-05,2]
[398243388,1765450715171,-61.31014412,9.899e-05,2]
[398243389,1765450715195,-98.63937335,9.899e-05,2]
[398243390,1765450716678,-339.4461304,9.899e-05,2]
[398243391,1765450719317,-128.75601501,9.899e-05,2]
[398243392,1765450719340,-35.65704188,9.899e-05,2]
[398243393,1765450722040,-333.3499811,9.899e-05,2]
[398243394,1765450723690,-130.99297702,9.899e-05,2]
[398243395,1765450723711,-154.63330132,9.899e-05,2]
[398243396,1765450727668,-204.29992213,9.899e-05,2]
[398243397,1765450732085,-176.32020411,9.899e-05,2]
[398243398,1765450734133,-30.8712931,9.899e-05,2]
[398243399,1765450734156,-137.52324564,9.899e-05,2]
[398243400,1765450737467,-357.91098261,9.899e-05,2]
[398243401,1765450740481,-4.56577175,9.899e-05,2]
[398243402,1765450740503,-315.99164845,9.899e-05,2]
[398243403,1765450743611,-236.71399754,9.898e-05,2]
[398243404,1765450746843,-63.28600246,9.898e-05,2]
[398243405,1765450746872,-153.44122179,9.899e-05,2]
[398243406,1765450750042,-30.56712976,9.899e-05,2]
[398243407,1765450750064,-129.98673984,9.899e-05,2]
[398243408,1765450752148,-189.55670011,9.899e-05,2]
[398243409,1765450753640,-120.59131485,9.899e-05,2]
[398243410,1765450753661,-35.08225174,9.899e-05,2]
[398243411,1765450757706,-186.29943104,9.899e-05,2]
[398243412,1765450759829,-271.35854393,9.899e-05,2]
[398243413,1765450765693,-7.25977329,9.899e-05,2]
[398243414,1765450765717,-269.8135386,9.899e-05,2]
[398243415,1765450766745,-230.1864614,9.899e-05,2]
[398243416,1765450766767,-136.88771318,9.899e-05,2]
[398243417,1765450768744,-294.37669357,9.899e-05,2]
[398243418,1765450770911,-68.73559325,9.899e-05,2]
[398243419,1765450770937,-227.35792701,9.899e-05,2]
[398243420,1765450773499,-251.66959735,9.899e-05,2]
[398243421,1765450773520,-164.04125098,9.899e-05,2]
[398243422,1765450776663,-257.60747974,9.899e-05,2]
[398243423,1765450777957,-78.35126928,9.899e-05,2]
[398243424,1765450777979,-181.59297203,9.899e-05,2]
[398243425,1765450782120,-277.91015139,9.899e-05,2]
[398243426,1765450784437,-40.49687658,9.899e-05,2]
[398243427,1765450784462,-354.40701884,9.899e-05,2]
[398243428,1765450787057,-145.59298116,9.899e-05,2]
[398243429,1765450787086,-40.73318882,9.899e-05,2]
[398243430,1765450787268,-459.26681118,9.899e-05,2]
[398243431,1765450787310,-497.60675034,9.899e-05,2]
[398243432,1765450787349,-500.0,9.899e-05,2]
[398243433,1765450787389,-500.0,9.899e-05,2]
[398243434,1765450787429,-167.99092442,9.899e-05,2]
[398243435,1765450787464,-500.0,9.899e-05,2]
[398243436,1765450787502,-415.18240035,9.899e-05,2]
[398243437,1765450787539,-500.0,9.899e-05,2]
[398243438,1765450787574,-523.35442874,9.899e-05,2]
[398243439,1765450787607,-483.83539325,9.899e-05,2]
[398243440,1765450789198,-150.0,9.9e-05,2]
[398243441,1765450789227,-38.22567193,9.9e-05,2]
[398243442,1765450793043,-257.60747974,9.9e-05,2]
[398243443,1765450796754,-398.75728919,9.9e-05,2]
[398243444,1765450799964,-177.84998701,9.9e-05,2]
[398243445,1765450801538,300.0,9.899e-05,2]
[398243446,1765450802026,300.0,9.899e-05,2]
[398243447,1765450802056,-204.24019785,9.9e-05,2]
[398243448,1765450802230,300.0,9.899e-05,2]
[398243449,1765450803201,5.53658344,9.899e-05,2]
[398243450,1765450803223,294.46341656,9.899e-05,2]
[398243452,1765450804177,-251.15376102,9.9e-05,2]
[398243453,1765450806525,1200.0,9.899e-05,2]
[398243463,1765450808923,-300.0,9.9e-05,2]
[398243464,1765450810955,-415.40982966,9.9e-05,2]
[398243467,1765450814146,-165.57254056,9.9e-05,2]
[398243478,1765450817070,-214.86638172,9.9e-05,2]
[398243479,1765450862753,300.0,9.899e-05,2]
[398243482,1765450906511,268.74,9.702e-05,2]
[398243483,1765450922632,300.0,9.899e-05,2]
[398243484,1765450980885,1200.0,9.899e-05,2]
[398243485,1765450982318,300.0,9.899e-05,2]
[398243486,1765450983081,300.0,9.899e-05,2]
[398243487,1765451002349,188.87209938,9.294e-05,2]
[398243488,1765451042619,300.0,9.899e-05,2]
[398243489,1765451051738,227.65594123,9.899e-05,2]
[398243490,1765451054663,355.35669576,9.899e-05,2]
[398243491,1765451102532,300.0,9.899e-05,2]
[398243492,1765451106199,1200.0,9.899e-05,2]
[398243493,1765451110603,514.84070869,9.894e-05,2]
[398243494,1765451115703,2487.15318209,9.894e-05,2]
[398243495,1765451126989,399.0,9.894e-05,2]
[398243496,1765451162503,300.0,9.899e-05,2]
[398243497,1765451163096,300.0,9.899e-05,2]
[398243498,1765451170346,500.0,9.899e-05,2]
[398243499,1765451170391,500.0,9.899e-05,2]
[398243500,1765451170422,546.77940561,9.899e-05,2]
[398243501,1765451170455,500.0,9.899e-05,2]
[398243502,1765451170493,500.0,9.899e-05,2]
[398243503,1765451170524,500.0,9.899e-05,2]
[398243504,1765451170554,500.0,9.899e-05,2]
[398243505,1765451170586,500.0,9.899e-05,2]
[398243506,1765451170674,300.0,9.899e-05,2]
[398243507,1765451170719,250.0,9.899e-05,2]
[398243508,1765451182186,253.57136435,9.899e-05,2]
[398243510,1765451184660,396.2052568,9.899e-05,2]
[398243512,1765451187235,569.96503422,9.899e-05,2]
[398243513,1765451207461,500.0,9.899e-05,2]
[398243514,1765451207491,197.33575693,9.899e-05,2]
[398243515,1765451207513,302.66424307,9.899e-05,2]
[398243516,1765451207829,500.0,9.899e-05,2]
[398243517,1765451207865,500.0,9.899e-05,2]
[398243518,1765451207897,500.0,9.899e-05,2]
[398243519,1765451207928,612.39422138,9.899e-05,2]
[398243520,1765451207959,500.0,9.899e-05,2]
[398243521,1765451207993,500.0,9.899e-05,2]
[398243522,1765451208024,500.0,9.899e-05,2]
[398243523,1765451208061,500.0,9.899e-05,2]
[398243524,1765451208090,427.53525801,9.899e-05,2]
[398243525,1765451208138,500.0,9.899e-05,2]
[398243526,1765451208177,500.0,9.899e-05,2]
[398243527,1765451208207,500.0,9.899e-05,2]
[398243528,1765451208237,500.0,9.899e-05,2]
[398243529,1765451208269,500.0,9.899e-05,2]
[398243530,1765451208308,500.0,9.899e-05,2]
[398243531,1765451208341,500.0,9.899e-05,2]
[398243532,1765451208372,500.0,9.899e-05,2]
[398243533,1765451208410,500.0,9.899e-05,2]
[398243534,1765451208449,500.0,9.899e-05,2]
[398243535,1765451208489,157.41627754,9.899e-05,2]
[398243536,1765451208512,342.58372246,9.899e-05,2]
[398243537,1765451208547,500.0,9.899e-05,2]
[398243538,1765451217990,500.0,9.899e-05,2]
[398243539,1765451218026,500.0,9.899e-05,2]
[398243540,1765451218058,500.0,9.899e-05,2]
[398243541,1765451218099,500.0,9.899e-05,2]
[398243542,1765451218130,413.91486784,9.899e-05,2]
[398243543,1765451218159,500.0,9.899e-05,2]
[398243544,1765451218216,500.0,9.899e-05,2]
[398243545,1765451218261,500.0,9.899e-05,2]
[398243546,1765451218290,500.0,9.899e-05,2]
[398243547,1765451218321,500.0,9.899e-05,2]
[398243548,1765451218351,500.0,9.899e-05,2]
[398243549,1765451218385,500.0,9.899e-05,2]
[398243550,1765451218418,500.0,9.899e-05,2]
[398243551,1765451218457,215.25778213,9.899e-05,2]
[398243552,1765451218493,500.0,9.899e-05,2]
[398243553,1765451218529,500.0,9.899e-05,2]
[398243554,1765451218563,500.0,9.899e-05,2]
[398243555,1765451218607,500.0,9.899e-05,2]
[398243556,1765451222595,300.0,9.899e-05,2]
[398243557,1765451226019,150.0,6.663e-05,2]
[398243558,1765451226411,78.25362757,6.98e-05,2]
[398243559,1765451226437,214.50637243,6.98e-05,2]
[398243560,1765451226930,439.15,7.297e-05,2]
[398243561,1765451227347,585.53,7.615e-05,2]
[398243562,1765451227760,731.91,7.932e-05,2]
[398243563,1765451228509,878.29,8.249e-05,2]
[398243564,1765451228920,1024.67,8.567e-05,2]
[398243565,1765451229326,1171.06,8.884e-05,2]
[398243566,1765451229748,1317.44,9.201e-05,2]
[398243567,1765451230157,1463.82,9.518e-05,2]
[398243568,1765451281599,1200.0,9.899e-05,2]
[398243569,1765451282956,300.0,9.899e-05,2]
[398243570,1765451302011,150.0,6.663e-05,2]
[398243573,1765451303074,150.0,6.98e-05,2]
[398243574,1765451303369,150.0,7.298e-05,2]
[398243575,1765451303429,175.47,7.615e-05,2]
[398243576,1765451303607,48.16362757,7.932e-05,2]
[398243577,1765451303631,171.17637243,7.932e-05,2]
[398243578,1765451304029,263.21,8.249e-05,2]
[398243579,1765451304445,307.08,8.567e-05,2]
[398243580,1765451304849,350.95,8.884e-05,2]
[398243581,1765451305251,394.82,9.201e-05,2]
[398243583,1765451306149,438.69,9.519e-05,2]
[398243584,1765451314661,308.54729863,0.000112,9]
[398243587,1765451342506,300.0,9.899e-05,2]
[398243589,1765451375306,150.0,6.662e-05,2]
[398243590,1765451375703,150.0,6.979e-05,2]
[398243591,1765451376101,150.0,7.296e-05,2]
[398243592,1765451376770,150.0,7.613e-05,2]
[398243593,1765451376907,150.0,7.931e-05,2]
[398243594,1765451401274,300.0,9.899e-05,2]
[398243595,1765451402715,300.0,9.899e-05,2]
[398243596,1765451402820,300.0,9.899e-05,2]
[398243597,1765451403315,6124.08362757,9.002e-05,2]
[398243598,1765451403337,3875.91637243,9.002e-05,2]
[398243599,1765451406394,1200.0,9.899e-05,2]
[398243600,1765451407233,300.0,9.899e-05,2]
[398243601,1765451411257,514.84070869,9.894e-05,2]
[398243602,1765451413625,4182.49494393,9.894e-05,2]
[398243610,1765451420609,399.0,9.894e-05,2]
[398243611,1765451420650,2487.15318209,9.894e-05,2]
[398243682,1765451437871,-214972.61956334,9.9e-05,2]
[398243684,1765451437883,-46462.22602047,9.9e-05,2]
[398243690,1765451437923,-473610.95555767,9.9e-05,2]
[398243990,1765451441499,-3e-08,9.9e-05,2]
[398243993,1765451443101,-1571.95809844,9.9e-05,2]
[398243994,1765451443112,-25013.1,9.9e-05,2]
[398243995,1765451443261,-123766.8664558,9.9e-05,2]
[398243996,1765451443271,-10821.99279108,9.9e-05,2]
[398243998,1765451443281,-559.0,9.9e-05,2]
[398244000,1765451443290,-150.0,9.903e-05,2]
[398244002,1765451443299,-21049.755691,9.912e-05,2]
[398244004,1765451443308,-613.443647,9.912e-05,2]
[398244005,1765451443317,-613.443647,9.912e-05,2]
[398244007,1765451443326,-613.443647,9.912e-05,2]
[398244009,1765451443335,-613.443647,9.912e-05,2]
[398244010,1765451443346,-269.897304,9.912e-05,2]
[398244011,1765451443356,-269.897304,9.912e-05,2]
[398244012,1765451443366,-269.897304,9.912e-05,2]
[398244014,1765451443375,-269.897304,9.912e-05,2]
[398244016,1765451443384,-50000.0,9.912e-05,2]
[398244018,1765451443393,-613.443647,9.994e-05,2]
[398244020,1765451443402,-613.443647,9.994e-05,2]
[398244021,1765451443412,-613.443647,9.994e-05,2]
[398244022,1765451443422,-613.443647,9.994e-05,2]
[398244023,1765451443432,-105961.25218655,0.0001,2]
[398244024,1765451443444,-1874.46960627,0.0001,2]
[398244026,1765451446032,-2545.4000002,0.0001,2]
[398244027,1765451446044,-29460.77702297,0.0001,2]
[398244028,1765451446057,-2732.30630634,0.0001,2]
[398244029,1765451446069,-1885.69208129,0.0001,2]
[398244030,1765451535821,295.70307172,9.899e-05,2]
[398244031,1765451556792,200.0,9.899e-05,2]
[398244035,1765451577942,2435.65880226,9.8e-05,2]
[398244036,1765451577967,10000.01,9.8e-05,2]
[398244037,1765451577991,10000.01,9.8e-05,2]
[398244038,1765451578015,10000.01,9.8e-05,2]
[398244039,1765451578038,10000.01,9.8e-05,2]
[398244040,1765451578061,10000.01,9.8e-05,2]
[398244041,1765451587164,-300.0,9.799e-05,2]
[398244044,1765451590265,-4457.94784384,9.8e-05,2]
[398244045,1765451592935,-10000.01,9.8e-05,2]
[398244047,1765451593124,-10000.01,9.8e-05,2]
[398244048,1765451593355,-10000.01,9.8e-05,2]
[398244050,1765451596527,-10000.01,9.8e-05,2]
[398244051,1765451596951,-10000.01,9.8e-05,2]
[398244053,1765451597523,-10000.01,9.8e-05,2]
[398244054,1765451597537,-10000.01,9.8e-05,2]
[398244055,1765451597573,-10000.01,9.8e-05,2]
[398244056,1765451597698,-10000.01,9.8e-05,2]
[398244057,1765451603290,-10000.01,9.8e-05,2]
[398244058,1765451603476,-10000.01,9.8e-05,2]
[398244059,1765451603805,-10000.01,9.8e-05,2]
[398244060,1765451603934,-10000.01,9.8e-05,2]
[398244061,1765451606783,-10000.01,9.8e-05,2]
[398244062,1765451608625,-10000.01,9.8e-05,2]
[398244063,1765451612312,-10000.01,9.8e-05,2]
[398244064,1765451612716,-10000.01,9.8e-05,2]
[398244065,1765451612897,-10000.01,9.8e-05,2]
[398244066,1765451613065,-10000.01,9.8e-05,2]
[398244067,1765451615538,-10000.01,9.8e-05,2]
[398244068,1765451615715,-10000.01,9.8e-05,2]
[398244069,1765451615924,-10000.01,9.8e-05,2]
[398244070,1765451616076,-10000.01,9.8e-05,2]
[398244071,1765451619212,-10000.01,9.8e-05,2]
[398244072,1765451619520,-10000.01,9.8e-05,2]
[398244073,1765451619668,-10000.01,9.8e-05,2]
[398244074,1765451619817,-10000.01,9.8e-05,2]
[398244075,1765451619954,-10000.01,9.8e-05,2]
[398244076,1765451620248,-10000.01,9.8e-05,2]
[398244077,1765451622122,-10000.01,9.8e-05,2]
[398244078,1765451622303,-10000.01,9.8e-05,2]
[398244079,1765451622486,-10000.01,9.8e-05,2]
[398244080,1765451622633,-10000.01,9.8e-05,2]
[398244082,1765451625540,-10000.01,9.8e-05,2]
[398244083,1765451626011,-10000.01,9.8e-05,2]
[398244084,1765451626205,-10000.01,9.8e-05,2]
[398244085,1765451626392,-10000.01,9.8e-05,2]
[398244086,1765451626582,-10000.01,9.8e-05,2]
[398244087,1765451626775,-10000.01,9.8e-05,2]
[398244088,1765451629081,-10000.01,9.8e-05,2]
[398244089,1765451629229,-10000.01,9.8e-05,2]
[398244090,1765451629254,-10000.01,9.8e-05,2]
[398244091,1765451629596,-10000.01,9.8e-05,2]
[398244092,1765451632123,-10000.01,9.8e-05,2]
[398244093,1765451632554,-10000.01,9.8e-05,2]
[398244094,1765451632750,-10000.01,9.8e-05,2]
[398244095,1765451632928,-10000.01,9.8e-05,2]
[398244096,1765451633120,-10000.01,9.8e-05,2]
[398244097,1765451633326,-10000.01,9.8e-05,2]
[398244098,1765451635006,-10000.01,9.8e-05,2]
[398244099,1765451635198,-10000.01,9.8e-05,2]
[398244100,1765451635451,-10000.01,9.8e-05,2]
[398244101,1765451635723,-10000.01,9.8e-05,2]
[398244102,1765451638601,-10000.01,9.8e-05,2]
[398244103,1765451639006,-10000.01,9.8e-05,2]
[398244104,1765451639757,-10000.01,9.8e-05,2]
[398244105,1765451639771,-10000.01,9.8e-05,2]
[398244106,1765451639830,-10000.01,9.8e-05,2]
[398244107,1765451639844,-10000.01,9.8e-05,2]
[398244108,1765451641592,-10000.01,9.8e-05,2]
[398244109,1765451641786,-10000.01,9.8e-05,2]
[398244110,1765451641960,-10000.01,9.8e-05,2]
[398244111,1765451642132,-10000.01,9.8e-05,2]
[398244112,1765451645040,-300.0,9.799e-05,2]
[398244113,1765451645094,-9400.01,9.8e-05,2]
[398244114,1765451645455,-10000.01,9.8e-05,2]
[398244115,1765451645653,-10000.01,9.8e-05,2]
[398244116,1765451645855,-10000.01,9.8e-05,2]
[398244117,1765451646023,-10000.01,9.8e-05,2]
[398244118,1765451646219,-10000.01,9.8e-05,2]
[398244119,1765451648131,-10000.01,9.8e-05,2]
[398244120,1765451648299,-10000.01,9.8e-05,2]
[398244121,1765451648442,-10000.01,9.8e-05,2]
[398244122,1765451648604,-10000.01,9.8e-05,2]
[398244123,1765451651318,-10000.01,9.8e-05,2]
[398244124,1765451651537,-10000.01,9.8e-05,2]
[398244125,1765451651746,-10000.01,9.8e-05,2]
[398244126,1765451651925,-10000.01,9.8e-05,2]
[398244127,1765451652114,-10000.01,9.8e-05,2]
[398244128,1765451652302,-10000.01,9.8e-05,2]
[398244129,1765451657604,-10000.01,9.8e-05,2]
[398244130,1765451657758,-10000.01,9.8e-05,2]
[398244131,1765451663780,-10000.01,9.8e-05,2]
[398244132,1765451663942,-10000.01,9.8e-05,2]
[398244147,1765452223925,161.379734,4.491e-05,2]
[398244170,1765452507259,692.78067238,0.0001,7]
[398244171,1765452520948,200.0,8e-05,7]
[398244257,1765452636898,-160.23,7.2e-05,2]
[398244258,1765452636927,-522.0,7.2e-05,2]
[398244296,1765452638252,-300.0,8.919e-05,2]
[398244298,1765452638265,-106.0,8.919e-05,2]
[398244397,1765452640254,-194.0,8.919e-05,2]
[398244398,1765452640264,-275.03699351,8.919e-05,2]
[398244422,1765452655565,150.0,6.667e-05,2]
[398244423,1765452655982,150.0,6.984e-05,2]
[398244539,1765452999668,6140.0,0.0001915,99]
[398244614,1765453551562,-1118.88741053,8.331e-05,2]
[398244615,1765453553495,-279.12385035,8.331e-05,2]
[398244616,1765453556184,-330.64875629,8.331e-05,2]
[398244617,1765453560589,-209.691912,8.331e-05,2]
[398244618,1765453562106,-159.24122081,8.331e-05,2]
[398244619,1765453563518,-186.0151283,8.331e-05,2]
[398244620,1765453565517,-151.0,8.331e-05,2]
[398244621,1765453567529,-170.33498569,8.331e-05,2]
[398244622,1765453570126,-229.09048026,8.331e-05,2]
[398244623,1765453573327,-199.11416612,8.331e-05,2]
[398244625,1765453575996,-300.0,8.331e-05,2]
[398244626,1765453579307,-316.73877148,8.331e-05,2]
[398244627,1765453582172,-244.48870521,8.331e-05,2]
[398244628,1765453584634,-284.28394076,8.331e-05,2]
[398244629,1765453590867,-215.83868254,8.331e-05,2]
[398244630,1765453594018,-188.01006919,8.331e-05,2]
[398244633,1765453598586,-175.6907337,8.331e-05,2]
[398244708,1765453832138,-4157.43038427,8.331e-05,2]
[398244709,1765453832148,-537.0,8.331e-05,2]
[398244710,1765453832158,-150.0,8.624e-05,2]
[398244711,1765453832167,-1200.0,8.917e-05,2]
[398244712,1765453832176,-300.0,8.917e-05,2]
[398244713,1765453832186,-1200.0,8.917e-05,2]
[398244714,1765453832195,-300.0,8.919e-05,2]
[398244715,1765453832203,-3651.43090376,8.92e-05,2]
[398244716,1765453832214,-805.57,8.92e-05,2]
[398244717,1765453832226,-1112.14381274,8.92e-05,2]
[398244718,1765453832237,-2782.094928,8.92e-05,2]
[398244741,1765453838237,-1315.63139838,8.92e-05,2]
[398244742,1765453838286,-2169.78279835,8.92e-05,2]
[398244751,1765453840793,-3e-08,8.92e-05,2]
[398244766,1765453844036,-487.19916824,8.92e-05,2]
[398244813,1765453846455,-3936.9282391,8.92e-05,2]
[398244815,1765453846466,-3660.12677692,9.058e-05,2]
[398244817,1765453846475,-2146.77893788,9.096e-05,2]
[398245179,1765454105943,-389.89547651,8.494e-05,2]
[398245180,1765454107583,-251.62143849,8.493e-05,2]
[398245181,1765454109214,-269.26314955,8.493e-05,2]
[398245182,1765454112329,-161.52676307,8.493e-05,2]
[398245183,1765454113845,-164.96790987,8.493e-05,2]
[398245187,1765454181653,-189.99216055,8.493e-05,2]
[398245188,1765454185347,-162.62857847,8.493e-05,2]
[398245189,1765454185369,-25.06845544,8.494e-05,2]
[398245191,1765454188533,-577.3562062,8.494e-05,2]
[398245192,1765454193917,-286.49077375,8.494e-05,2]
[398245194,1765454195469,-203.36951046,8.494e-05,2]
[398245195,1765454196918,-324.4471519,8.494e-05,2]
[398245208,1765454200089,-282.46151459,8.494e-05,2]
[398245210,1765454202053,-164.44899972,8.494e-05,2]
[398245213,1765454204166,-269.7846612,8.494e-05,2]
[398245217,1765454206755,-166.21,8.494e-05,2]
[398245218,1765454208188,-429.52625109,8.494e-05,2]
[398245222,1765454211754,-183.1116982,8.488e-05,2]
[398245223,1765454211774,-133.03748441,8.494e-05,2]
[398245225,1765454213852,-209.27051222,8.488e-05,2]
[398245226,1765454213874,-170.30635566,8.494e-05,2]
[398245228,1765454217660,-209.18396583,8.488e-05,2]
[398245229,1765454219112,-117.80120952,8.488e-05,2]
[398245230,1765454219139,-123.93317053,8.488e-05,2]
[398245233,1765454221681,-179.2736605,8.488e-05,2]
[398245239,1765454223800,-167.18096282,8.488e-05,2]
[398245240,1765454223821,-90.44226703,8.494e-05,2]
[398245242,1765454225928,-155.76954263,8.494e-05,2]
[398245244,1765454227346,-308.65518727,8.494e-05,2]
[398245246,1765454230894,-273.67740314,8.494e-05,2]
[398245249,1765454235411,-226.32259686,8.494e-05,2]
[398245250,1765454237261,-173.35100915,8.494e-05,2]
[398245252,1765454238908,-221.34739681,8.494e-05,2]
[398245255,1765454242732,-163.19541236,8.494e-05,2]
[398245257,1765454245948,-251.92865864,8.494e-05,2]
[398245259,1765454248501,-252.73862834,8.494e-05,2]
[398245261,1765454251841,-265.83758399,8.494e-05,2]
[398245263,1765454253171,-324.90722685,8.494e-05,2]
[398245266,1765454257916,-329.31244126,8.494e-05,2]
[398245268,1765454259891,-198.34466386,8.494e-05,2]
[398245270,1765454262399,-210.9105253,8.494e-05,2]
[398245272,1765454263939,-175.79394898,8.494e-05,2]
[398245275,1765454267099,-283.27277575,8.494e-05,2]
[398245277,1765454269816,-229.88245979,8.494e-05,2]
[398245280,1765454272998,-195.97307753,8.494e-05,2]
[398245281,1765454275703,-274.27918969,8.494e-05,2]
[398245284,1765454279410,-158.39044696,8.494e-05,2]
[398245286,1765454281962,-170.68880536,8.494e-05,2]
[398245288,1765454285217,-154.40968752,8.494e-05,2]
[398245291,1765454289959,-269.50621758,8.494e-05,2]
[398245293,1765454291372,-169.0568442,8.494e-05,2]
[398245296,1765454294513,-170.02757482,8.494e-05,2]
[398245299,1765454296100,-302.49508575,8.106e-05,2]
[398245300,1765454299095,-328.76047899,8.106e-05,2]
[398245303,1765454300980,-203.41997155,8.106e-05,2]
[398245305,1765454303000,-241.23090131,8.106e-05,2]
[398245307,1765454305585,-520.45266757,8.106e-05,2]
[398245308,1765454308029,-166.08643853,8.106e-05,2]
[398245310,1765454310166,-242.93571075,8.106e-05,2]
[398245312,1765454312643,-224.83702641,8.106e-05,2]
[398245314,1765454317325,-159.94951747,8.106e-05,2]
[398245315,1765454319343,-339.4461304,8.106e-05,2]
[398245317,1765454321876,-164.41305689,8.106e-05,2]
[398245319,1765454324169,-333.3499811,8.106e-05,2]
[398245322,1765454326939,-154.63330132,8.106e-05,2]